bitfinex/quotes_SOLUSD_20250907
["timestamp","ask_amount","ask_price","bid_price","bid_amount"]
[1757238398539,0.06,203.0,202.99,0.67]
[1757238398934,0.06,203.0,202.99,14.26559401]
[1757238399134,0.06,203.0,202.99,14.75822911]
[1757238399680,0.06,203.03,203.0,39.59559401]
[1757238399957,0.76,203.03,203.01,38.02]
[1757238400160,2.51948178,203.02,202.99,26.0]
[1757238400455,3.21948178,203.02,203.0,38.02]
[1757238400641,3.21948178,203.01,203.0,38.02]
[1757238400856,3.21948178,203.01,202.97,2.51948178]
[1757238401162,2.51948178,202.98,202.97,40.53948178]
[1757238401352,2.51948178,202.99,202.97,38.02]
[1757238401660,0.7,203.0,202.97,38.02]
[1757238401843,3.21948178,202.99,202.97,38.02]
[1757238402044,3.21948178,202.98,202.97,38.02]
[1757238402553,4.92683647,202.97,202.93,4.92563191]
[1757238402753,7.44631825,202.97,202.93,4.92563191]
[1757238403054,8.14631825,202.97,202.94,38.02]
[1757238403844,8.14631825,202.97,202.92,41.46253471]
[1757238404149,3.21948178,202.96,202.93,38.0]
[1757238404530,0.7,202.96,202.93,38.0]
[1757238405437,7.44656755,202.96,202.93,38.0]
[1757238405638,0.7,202.95,202.93,38.0]
[1757238406059,7.44656755,202.96,202.93,38.0]
[1757238406559,8.14656755,202.96,202.93,38.0]
[1757238407755,0.7,202.95,202.91,14.26559401]
[1757238408052,7.44656755,202.96,202.92,38.67]
[1757238408249,8.14656755,202.96,202.92,38.67]
[1757238408633,8.14656755,202.96,202.92,0.67]
[1757238408828,0.7,202.95,202.93,37.98]
[1757238409538,0.7,202.95,202.91,13.59559401]
[1757238409539,7.44656755,202.96,202.9,14.79253471]
[1757238409855,2.51948178,202.94,202.9,0.72]
[1757238410161,3.23948178,202.94,202.9,0.72]
[1757238410854,15.51253471,202.94,202.9,0.72]
[1757238411437,18.03201649,202.94,202.9,0.72]
[1757238411639,0.72,202.93,202.9,0.03]
[1757238417055,14.79253471,202.94,202.9,13.62559401]
[1757238417256,3.23948178,202.96,202.91,0.72]
[1757238417463,14.79472321,202.97,202.9,13.62559401]
[1757238417659,15.51472321,202.97,202.92,0.72]
[1757238417958,0.72,202.97,202.93,38.66]
[1757238419162,0.72,202.96,202.93,37.94]
[1757238421045,7.44631825,202.97,202.93,38.66]
[1757238421046,2.51948178,202.97,202.93,38.66]
[1757238421241,3.23948178,202.97,202.93,38.66]
[1757238421864,3.23948178,202.97,202.94,0.72]
[1757238422057,3.23948178,202.97,202.93,37.94]
[1757238422259,3.23948178,202.97,202.93,38.66]
[1757238422566,8.16632732,202.97,202.93,38.66]
[1757238422739,7.44632732,202.97,202.93,38.66]
[1757238422935,0.72,202.96,202.93,37.94]
[1757238424054,2.51948178,202.97,202.93,38.66]
[1757238424249,3.23948178,202.98,202.94,0.72]
[1757238424450,22.23988682,202.99,202.95,0.72]
[1757238424644,0.72,202.98,202.96,37.9]
[1757238424843,8.16589318,202.99,202.96,37.9]
[1757238425272,5.6464114,202.99,202.96,37.9]
[1757238425472,0.72,202.98,202.96,37.9]
[1757238427246,12.43205565,203.0,202.96,37.9]
[1757238427454,5.70616247,203.0,202.96,38.62]
[1757238427659,9.63864686,203.0,202.96,38.62]
[1757238428053,0.72,202.99,202.96,38.62]
[1757238428259,0.72,202.99,202.96,37.9]
[1757238429260,4.65248439,202.99,202.96,37.9]
[1757238429466,4.92659375,202.98,202.96,37.9]
[1757238429854,4.65248439,202.97,202.96,37.88]
[1757238430058,4.65248439,202.97,202.93,0.03]
[1757238430259,3.93248439,202.96,202.94,37.88]
[1757238430563,4.65248439,202.96,202.94,37.88]
[1757238430962,9.57966014,202.96,202.94,37.88]
[1757238435757,9.57966014,202.96,202.95,37.84]
[1757238439066,4.92717575,202.96,202.95,37.84]
[1757238439650,8.85966014,202.96,202.95,37.84]
[1757238440063,3.93248439,202.96,202.95,37.84]
[1757238440263,9.52936584,202.97,202.95,37.84]
[1757238442960,9.52936584,202.97,202.95,37.82]
[1757238444962,0.67,202.98,202.95,37.82]
[1757238445169,3.93248439,202.98,202.96,0.71]
[1757238445773,3.93248439,202.98,202.95,38.53]
[1757238446160,9.52894057,202.99,202.95,38.53]
[1757238447978,9.52894057,202.99,202.96,0.71]
[1757238448159,3.93248439,202.98,202.96,0.71]
[1757238448361,3.93248439,202.99,202.96,0.71]
[1757238449561,3.93248439,202.99,202.97,0.71]
[1757238449761,3.99248439,203.0,202.98,0.71]
[1757238449979,3.93248439,202.99,202.98,38.49]
[1757238450274,0.06,203.0,202.98,38.49]
[1757238450275,3.99248439,203.0,202.98,38.49]
[1757238451981,0.06,203.0,202.99,0.71]
[1757238455586,0.06,203.0,202.98,38.49]
[1757238456657,0.06,203.0,202.98,37.78]
[1757238456862,0.06,203.0,202.98,38.49]
[1757238457662,0.06,203.0,202.98,37.78]
[1757238457866,0.06,203.0,202.99,0.71]
[1757238458772,0.06,203.0,202.99,14.30559401]
[1757238459970,0.06,203.0,202.99,19.23194506]
[1757238460367,0.06,203.0,202.99,52.04559401]
[1757238460669,0.06,203.0,202.99,52.22559401]
[1757238461681,0.06,203.0,202.99,14.30559401]
[1757238461883,0.06,203.0,202.99,52.24559401]
[1757238462898,0.06,203.0,202.99,14.30559401]
[1757238463089,0.06,203.0,202.99,52.24559401]
[1757238467085,0.06,203.0,202.99,57.17194506]
[1757238476601,0.06,203.0,202.99,57.11194506]
[1757238482726,0.06,203.0,202.99,57.60458016]
[1757238483217,0.06,203.0,202.99,57.63458016]
[1757238486223,0.06,203.0,202.99,137.43458016]
[1757238486405,0.06,203.0,202.99,136.94194506]
[1757238489941,0.06,203.0,202.99,99.06194506]
[1757238490147,0.06,203.0,202.99,136.88194506]
[1757238495153,0.06,203.0,202.99,143.3490912]
[1757238495527,0.06,203.0,202.99,145.32016569]
[1757238497033,0.06,203.0,202.99,143.3490912]
[1757238499760,0.06,203.0,202.99,145.32016568]
[1757238501965,0.06,203.03,202.99,145.32016568]
[1757238501966,0.06,203.03,203.02,39.59559401]
[1757238502153,0.06,203.03,203.02,77.37559401]
[1757238503156,0.06,203.03,203.02,81.22996926]
[1757238503533,0.06,203.03,203.02,81.94996926]
[1757238504054,0.06,203.03,203.02,86.87559235]
[1757238505773,0.06,203.03,203.02,86.15559235]
[1757238507388,0.78,203.03,203.02,44.5212171]
[1757238507557,0.78,203.03,203.02,82.2612171]
[1757238508980,0.78,203.03,203.02,84.23219446]
[1757238515873,0.78,203.03,203.02,46.49219446]
[1757238516367,0.78,203.03,203.02,84.19219446]
[1757238517191,0.06,203.03,203.02,84.19219446]
[1757238526493,0.78,203.03,203.02,79.24657137]
[1757238527707,0.78,203.03,203.02,84.17219446]
[1757238529177,0.06,203.03,203.02,84.17219446]
[1757238529904,0.72,203.03,203.02,84.17219446]
[1757238531305,0.06,203.03,203.02,84.17219446]
[1757238536112,0.06,203.03,203.02,84.86219446]
[1757238537606,0.06,203.03,203.02,84.17219446]
[1757238537808,0.72,203.03,203.02,79.22657137]
[1757238538288,0.72,203.03,203.02,84.15219446]
[1757238538810,0.72,203.03,203.02,46.49219446]
[1757238538991,0.72,203.03,203.02,1.97097736]
[1757238538992,8.15974927,203.03,203.02,1.97097736]
[1757238539304,8.15974927,203.03,203.02,37.7]
[1757238540394,3.23436879,203.03,203.02,37.7]
[1757238544819,8.15981487,203.03,203.02,37.68]
[1757238545321,3.23436879,203.03,203.02,37.68]
[1757238549024,8.15974927,203.03,203.02,37.68]
[1757238549521,9.5769388,203.03,203.02,37.68]
[1757238550724,5.64538048,203.03,203.02,37.68]
[1757238554510,0.72,203.03,203.02,37.68]
[1757238559039,0.06,203.03,203.02,37.68]
[1757238560036,0.72,203.03,203.02,37.68]
[1757238561934,0.06,203.03,203.02,37.68]
[1757238565537,0.06,203.03,203.01,0.72]
[1757238565739,3.93155832,203.02,203.0,0.03]
[1757238565940,4.59155832,203.01,203.0,0.03]
[1757238566117,4.59155832,203.01,203.0,37.69]
[1757238566810,9.51742404,203.01,203.0,37.69]
[1757238568112,3.93155832,203.01,203.0,37.69]
[1757238569130,5.58566837,203.02,203.0,37.69]
[1757238569441,3.93155832,203.01,203.0,37.69]
[1757238574452,5.58566837,203.02,203.0,37.69]
[1757238574646,4.59155832,203.01,203.0,37.69]
[1757238576052,4.92566837,203.02,203.0,37.69]
[1757238576249,3.93155832,203.01,203.0,37.69]
[1757238577151,4.92566837,203.02,203.0,37.69]
[1757238577331,4.59155832,203.01,203.0,37.69]
[1757238578936,0.66,203.01,203.0,37.69]
[1757238579137,9.51742404,203.01,203.0,37.69]
[1757238579340,9.51742404,203.01,203.0,37.71]
[1757238583965,9.51742404,203.01,203.0,0.03]
[1757238584260,9.51742404,203.01,203.0,37.71]
[1757238585233,8.85742404,203.01,203.0,37.71]
[1757238589769,8.91742404,203.01,203.0,37.71]
[1757238589941,8.91742404,203.01,203.0,0.03]
[1757238590144,8.91742404,203.01,203.0,37.71]
[1757238591065,9.60742404,203.01,203.0,37.71]
[1757238591242,9.60742404,203.01,203.0,0.03]
[1757238591442,9.60742404,203.01,203.0,37.71]
[1757238597268,9.60742404,203.01,203.0,0.03]
[1757238597468,9.60742404,203.01,203.0,37.69]
[1757238599266,9.60742404,203.01,203.0,0.03]
[1757238599471,9.60742404,203.01,203.0,37.69]
[1757238600945,8.91742404,203.01,203.0,37.69]
[1757238602063,4.98586572,203.01,203.0,37.69]
[1757238602266,8.91742404,203.01,203.0,37.69]
[1757238603274,9.60742404,203.01,203.0,37.69]
[1757238604177,5.67586572,203.01,203.0,37.69]
[1757238604354,9.60742404,203.01,203.0,37.69]
[1757238608761,9.60742404,203.01,203.0,37.69]
[1757238608971,8.91742404,203.01,203.0,37.69]
[1757238609673,9.60742404,203.01,203.0,37.69]
[1757238611494,4.98586572,203.01,203.0,37.69]
[1757238611667,4.98586572,203.01,203.0,38.4]
[1757238612173,4.98586572,203.01,203.0,51.99559401]
[1757238612174,0.06,203.01,203.0,51.99559401]
[1757238612378,0.00362587,203.01,203.0,54.33764228]
[1757238613580,0.00362587,203.01,203.0,56.92170238]
[1757238613959,0.06,203.03,203.02,39.59559401]
[1757238614160,0.06,203.03,203.02,51.25559401]
[1757238614373,0.06,203.03,203.02,51.96559401]
[1757238615065,0.06,203.03,203.02,53.93666849]
[1757238615583,0.06,203.03,203.02,58.86229158]
[1757238617483,0.06,203.03,203.02,59.35485388]
[1757238618278,0.06,203.04,203.03,13.59559401]
[1757238618591,0.06,203.04,203.03,14.30559401]
[1757238618979,0.06,203.05,203.04,18.52073191]
[1757238619179,0.06,203.05,203.04,57.3832457]
[1757238619677,0.06,203.05,203.04,59.35393175]
[1757238621670,0.06,203.05,203.04,58.86141796]
[1757238623590,0.06,203.05,203.04,59.35393175]
[1757238625893,0.06,203.05,203.04,58.86141796]
[1757238628911,0.06,203.05,203.04,20.49141796]
[1757238629208,0.78,203.05,203.04,53.20628006]
[1757238631602,0.06,203.05,203.04,53.20628006]
[1757238631988,0.78,203.05,203.04,53.20628006]
[1757238633415,0.78,203.05,203.04,15.56628006]
[1757238633589,0.78,203.05,203.04,53.20628006]
[1757238633902,0.78,203.05,203.04,79.20628006]
[1757238641006,0.06,203.05,203.04,79.20628006]
[1757238643697,0.06,203.05,203.04,79.23628006]
[1757238644894,0.06,203.05,203.04,84.84141796]
[1757238645098,0.06,203.05,203.04,79.91628006]
[1757238645300,0.78,203.05,203.04,79.23628006]
[1757238645980,0.78,203.05,203.04,77.26559401]
[1757238651212,5.70489534,203.05,203.01,0.03]
[1757238651404,2.51688806,203.02,203.01,0.03]
[1757238651711,12.5844403,203.02,203.01,0.03]
[1757238652009,1.97224072,203.04,203.0,0.03]
[1757238652210,2.51688806,203.01,203.0,0.03]
[1757238652703,3.20688806,203.01,203.0,0.03]
[1757238653105,8.13275378,203.01,203.0,0.03]
[1757238653509,10.10480003,203.01,203.0,0.03]
[1757238660703,7.58791197,203.01,203.0,0.03]
[1757238660899,10.10480003,203.01,203.0,0.03]
[1757238661217,7.44249355,203.03,203.0,0.69]
[1757238661408,7.44249355,203.03,203.01,38.76]
[1757238661811,15.53743068,203.05,203.01,38.1]
[1757238662012,3.26688806,203.05,203.01,38.76]
[1757238662209,2.51688806,203.04,203.01,38.76]
[1757238662822,2.51688806,203.03,203.01,38.76]
[1757238664900,10.60010271,203.05,203.01,38.76]
[1757238665106,2.51688806,203.03,203.01,38.76]
[1757238666622,2.51688806,203.03,203.02,0.66]
[1757238667000,4.92517078,203.04,203.02,0.66]
[1757238667196,2.51688806,203.03,203.01,38.1]
[1757238667415,2.51688806,203.03,203.01,38.76]
[1757238667798,2.51688806,203.02,203.01,38.76]
[1757238668199,2.51688806,203.02,203.01,38.1]
[1757238668619,4.92586572,203.01,203.0,0.03]
[1757238668825,7.44275378,203.01,203.0,0.03]
[1757238669023,8.13275378,203.01,203.0,0.03]
[1757238669198,7.44275378,203.01,203.0,0.03]
[1757238669812,8.13275378,203.01,203.0,0.03]
[1757238671416,5.61586572,203.01,203.0,0.03]
[1757238671631,9.55000769,203.01,203.0,0.03]
[1757238671820,13.48414966,203.01,203.0,0.03]
[1757238672336,25.79730313,203.01,203.0,0.03]
[1757238674521,21.86316116,203.01,203.0,0.03]
[1757238674712,21.17316116,203.01,203.0,0.69]
[1757238675041,8.86000769,203.01,203.0,0.03]
[1757238676339,8.86000769,203.01,203.0,0.69]
[1757238677036,8.86000769,203.01,203.0,0.03]
[1757238682557,9.57000769,203.01,203.0,0.03]
[1757238682716,13.50414966,203.01,203.0,0.03]
[1757238683320,15.47639037,203.01,203.0,0.03]
[1757238685743,14.76639037,203.01,203.0,0.03]
[1757238685933,15.47639037,203.01,203.0,0.03]
[1757238688427,11.5422484,203.01,203.0,0.03]
[1757238693533,7.60810643,203.01,203.0,0.03]
[1757238693734,11.5422484,203.01,203.0,0.03]
[1757238695250,11.6022484,203.01,203.0,0.03]
[1757238699358,10.8922484,203.01,203.0,0.03]
[1757238700155,10.8922484,203.01,203.0,0.7]
[1757238700341,10.8922484,203.01,203.0,0.03]
[1757238702368,6.95810643,203.01,203.0,0.03]
[1757238702553,8.92000769,203.01,203.0,0.7]
[1757238712360,4.98586572,203.01,203.0,0.7]
[1757238712783,8.92000769,203.01,203.0,0.7]
[1757238715900,4.98586572,203.01,203.0,0.7]
[1757238716095,8.92000769,203.01,203.0,0.7]
[1757238721810,0.06,203.01,203.0,14.29559401]
[1757238722311,0.06,203.01,203.0,52.19559401]
[1757238722805,0.06,203.01,203.0,57.12170238]
[1757238722996,0.06,203.04,203.03,26.0]
[1757238723379,0.06,203.04,203.03,26.65]
[1757238729808,0.06,203.04,203.03,39.59559401]
[1757238730119,0.06,203.04,203.03,77.47559401]
[1757238730299,0.06,203.04,203.03,78.12559401]
[1757238732504,0.06,203.04,203.03,77.47559401]
[1757238732711,0.06,203.04,203.03,78.12559401]
[1757238738802,0.06,203.04,203.03,80.0966685]
[1757238739999,0.06,203.04,203.03,85.02204898]
[1757238742416,0.06,203.04,203.03,80.0966685]
[1757238743216,0.06,203.04,203.03,42.2166685]
[1757238743417,0.06,203.04,203.03,80.0566685]
[1757238747329,0.06,203.04,203.03,84.98204898]
[1757238750612,0.06,203.04,203.03,80.0566685]
[1757238752324,0.06,203.04,203.03,109.6466685]
[1757238752533,0.06,203.04,203.03,80.0566685]
[1757238753331,0.06,203.04,203.03,84.98204898]
[1757238755510,0.06,203.04,203.03,85.47458702]
[1757238761537,0.06,203.04,203.03,80.0566685]
[1757238762017,0.06,203.04,203.03,84.98204898]
[1757238762224,0.06,203.05,203.04,13.59559401]
[1757238762225,0.03408848,203.05,203.04,13.59559401]
[1757238762432,0.03408848,203.05,203.04,43.83559401]
[1757238762932,0.06,203.07,203.06,13.59559401]
[1757238763131,0.06,203.08,203.07,64.52000431]
[1757238763310,0.06,203.13,203.08,13.59559401]
[1757238763517,0.06,203.13,203.08,52.56801079]
[1757238763715,0.06,203.13,203.08,53.87801744]
[1757238763916,0.06,203.13,203.08,54.04560066]
[1757238764836,0.06,203.13,203.08,58.96976847]
[1757238765041,0.06,203.13,203.08,59.46218525]
[1757238766921,0.06,203.13,203.08,63.43131463]
[1757238767134,0.06,203.13,203.08,15.56560066]
[1757238767343,0.06,203.13,203.08,53.36560066]
[1757238767344,0.78,203.09,203.08,53.36560066]
[1757238767532,0.06,203.09,203.08,53.36560066]
[1757238767732,0.06,203.09,203.08,15.56560066]
[1757238768031,0.06,203.09,203.08,54.04560066]
[1757238770656,0.06,203.09,203.08,58.96976847]
[1757238778650,0.06,203.09,203.08,15.56560066]
[1757238778850,0.06,203.09,203.08,53.36560066]
[1757238780945,0.06,203.09,203.08,15.56560066]
[1757238781148,0.06,203.09,203.08,15.59560066]
[1757238781455,0.06,203.09,203.08,53.39560066]
[1757238782868,0.06,203.09,203.08,15.59560066]
[1757238783057,8.20958591,203.09,203.08,2.00000665]
[1757238783249,8.20958591,203.09,203.08,39.82000665]
[1757238783650,8.20958591,203.09,203.08,37.85]
[1757238783968,5.69392535,203.09,203.08,37.85]
[1757238785169,5.69392535,203.09,203.08,26.03]
[1757238785468,5.69392535,203.09,203.08,37.83]
[1757238790179,0.77,203.09,203.08,37.83]
[1757238790363,0.06,203.09,203.08,51.42559401]
[1757238790674,0.06,203.09,203.08,52.10559401]
[1757238792881,0.06,203.09,203.08,57.02976182]
[1757238793063,0.06,203.09,203.08,59.00015664]
[1757238795482,0.06,203.09,203.08,54.07598883]
[1757238795687,0.06,203.09,203.08,53.39598883]
[1757238797792,0.06,203.09,203.08,51.42559401]
[1757238798997,0.06,203.09,203.08,53.39628006]
[1757238804494,0.06,203.09,203.08,54.06628006]
[1757238804892,0.06,203.09,203.08,58.99044787]
[1757238805390,0.06,203.09,203.08,84.99044787]
[1757238805594,0.06,203.09,203.08,80.06628006]
[1757238805787,0.06,203.09,203.08,54.06628006]
[1757238821813,0.06,203.09,203.08,53.39628006]
[1757238822219,0.06,203.09,203.08,54.06628006]
[1757238829724,0.06,203.09,203.08,16.26628006]
[1757238829896,0.06,203.09,203.08,53.33628006]
[1757238830101,0.06,203.09,203.08,54.02628006]
[1757238830314,0.06,203.09,203.08,53.33628006]
[1757238834726,0.06,203.09,203.08,15.59628006]
[1757238834909,0.76,203.09,203.08,79.33628006]
[1757238835215,0.76,203.09,203.08,77.36559401]
[1757238835728,5.68392535,203.09,203.08,77.36559401]
[1757238836324,0.76,203.09,203.08,77.36559401]
[1757238837429,0.06,203.09,203.08,77.36559401]
[1757238837916,0.06,203.09,203.08,78.05559401]
[1757238841824,0.06,203.09,203.08,77.36559401]
[1757238845753,0.06,203.09,203.08,78.05559401]
[1757238853439,0.76,203.09,203.08,39.62559401]
[1757238853631,0.06,203.09,203.08,77.36559401]
[1757238859748,0.76,203.09,203.08,37.77]
[1757238860056,5.68392535,203.09,203.08,37.77]
[1757238860456,5.68392535,203.09,203.08,0.03]
[1757238860655,5.68392535,203.09,203.08,37.77]
[1757238860953,5.68392535,203.09,203.08,0.03]
[1757238861258,5.68392535,203.09,203.08,37.77]
[1757238861948,5.68392535,203.09,203.08,0.03]
[1757238869754,20.46916968,203.09,203.08,0.03]
[1757238884882,19.76916968,203.09,203.08,0.03]
[1757238896884,19.76916968,203.09,203.08,0.7]
[1757238897395,4.98392535,203.09,203.08,0.7]
[1757238899316,0.06,203.09,203.08,0.7]
[1757238904513,0.06,203.09,203.08,14.29559401]
[1757238904716,0.06,203.09,203.08,16.26637715]
[1757238909522,0.06,203.09,203.08,53.98637715]
[1757238912625,0.06,203.09,203.08,16.26637715]
[1757238912926,0.06,203.09,203.08,37.75]
[1757238913338,0.06,203.09,203.08,0.03]
[1757238913634,0.06,203.09,203.08,38.42]
[1757238915730,0.06,203.09,203.08,0.7]
[1757238916027,0.06,203.09,203.08,38.42]
[1757238917226,0.06,203.09,203.08,0.7]
[1757238917529,0.06,203.09,203.08,38.42]
[1757238920139,0.06,203.09,203.08,52.01559401]
[1757238921429,0.06,203.09,203.08,14.29559401]
[1757238921814,0.06,203.09,203.08,52.01559401]
[1757238923237,0.06,203.09,203.08,0.03]
[1757238923430,0.73,203.09,203.08,37.75]
[1757238923738,0.73,203.09,203.08,0.03]
[1757238923914,0.73,203.09,203.08,37.75]
[1757238925424,5.65392535,203.09,203.08,37.75]
[1757238926528,5.65392535,203.09,203.08,0.03]
[1757238927031,15.80080635,203.09,203.08,0.03]
[1757238936833,15.13080635,203.09,203.08,0.7]
[1757238937143,4.98392535,203.09,203.08,0.7]
[1757238937934,0.06,203.09,203.08,0.7]
[1757238939546,0.06,203.09,203.08,0.03]
[1757238939724,0.73,203.09,203.08,0.03]
[1757238940242,0.06,203.09,203.08,0.03]
[1757238941136,5.65392535,203.09,203.08,0.03]
[1757238942537,4.98392535,203.09,203.08,0.03]
[1757238943727,5.65392535,203.09,203.08,0.03]
[1757238944938,4.98392535,203.09,203.08,0.03]
[1757238949346,5.69392535,203.09,203.08,0.03]
[1757238951325,20.47916967,203.09,203.08,0.03]
[1757238952250,19.76916967,203.09,203.08,0.03]
[1757238955152,4.98392535,203.09,203.08,0.03]
[1757238960155,19.76916968,203.09,203.08,0.03]
[1757238960330,4.98392535,203.09,203.08,0.03]
[1757238961438,19.76916967,203.09,203.08,0.03]
[1757238962644,20.47916967,203.09,203.08,0.03]
[1757238963371,19.76916967,203.09,203.08,0.03]
[1757238964454,4.98392535,203.09,203.08,0.03]
[1757238964758,19.76916967,203.09,203.08,0.03]
[1757238966158,4.98392535,203.09,203.08,0.03]
[1757238966658,19.76916967,203.09,203.08,0.03]
[1757238966851,4.98392535,203.09,203.08,0.03]
[1757238967053,0.06,203.09,203.08,0.75]
[1757238967256,14.84524433,203.09,203.08,0.75]
[1757238967564,0.06,203.09,203.08,0.75]
[1757238968850,0.06,203.09,203.08,0.03]
[1757238969062,0.06,203.09,203.08,0.75]
[1757238969557,0.06,203.09,203.08,0.03]
[1757238969859,0.77,203.09,203.08,0.03]
[1757238970237,0.06,203.09,203.08,0.03]
[1757238975048,0.06,203.09,203.08,0.75]
[1757238980165,0.06,203.09,203.08,0.03]
[1757238980361,0.76,203.09,203.08,0.03]
[1757238980976,2.73126876,203.09,203.08,0.03]
[1757238982178,6.95519411,203.09,203.08,0.03]
[1757238983084,7.65519411,203.09,203.08,0.03]
[1757238984174,6.95519411,203.09,203.08,0.03]
[1757238984772,6.95519411,203.09,203.08,0.74]
[1757238989986,6.95519411,203.09,203.08,0.03]
[1757238995881,6.95519411,203.09,203.08,0.74]
[1757238996080,6.95519411,203.09,203.08,0.03]
[1757238996382,6.95519411,203.09,203.08,0.74]
[1757238996684,6.95519411,203.09,203.08,0.03]
[1757238999670,6.95519411,203.09,203.08,0.74]
[1757239007795,2.03126876,203.09,203.08,0.74]
[1757239007999,0.06,203.09,203.08,26.74]
[1757239008299,0.06,203.09,203.08,33.69519411]
[1757239012999,0.06,203.09,203.08,71.37519411]
[1757239039421,0.06,203.09,203.08,84.97078812]
[1757239045117,0.06,203.09,203.08,84.95078812]
[1757239048026,0.00753673,203.09,203.08,84.95078812]
[1757239048411,0.00753673,203.09,203.08,89.87495593]
[1757239049432,0.00753673,203.09,203.08,84.95078812]
[1757239049609,0.00753673,203.09,203.08,84.93078812]
[1757239055219,0.00753673,203.09,203.08,47.29078812]
[1757239055419,0.00753673,203.09,203.08,84.93078812]
[1757239057316,0.69753673,203.09,203.08,20.58078812]
[1757239057543,5.62146208,203.09,203.08,51.26559401]
[1757239057710,5.62146208,203.09,203.08,77.26559401]
[1757239058038,0.00753673,203.09,203.08,77.26559401]
[1757239058233,0.69753673,203.09,203.08,77.26559401]
[1757239060534,0.00753673,203.09,203.08,77.26559401]
[1757239060841,0.00753673,203.09,203.08,77.92559401]
[1757239064220,0.00753673,203.09,203.08,77.26559401]
[1757239064646,0.00753673,203.09,203.08,77.92559401]
[1757239069437,0.00753673,203.09,203.08,77.26559401]
[1757239070047,0.71753673,203.09,203.08,77.26559401]
[1757239070547,0.00753673,203.09,203.08,77.26559401]
[1757239071233,0.71753673,203.09,203.08,77.26559401]
[1757239071434,5.64146208,203.09,203.08,77.26559401]
[1757239071939,5.64146208,203.09,203.08,63.67]
[1757239076047,0.00753673,203.09,203.08,63.67]
[1757239077755,4.93146208,203.09,203.08,63.67]
[1757239080677,0.00753673,203.09,203.08,63.67]
[1757239085058,0.00753673,203.09,203.08,64.39]
[1757239085260,0.00753673,203.09,203.08,63.67]
[1757239093061,0.00753673,203.09,203.08,64.39]
[1757239093264,0.00753673,203.09,203.08,77.98559401]
[1757239100369,0.00753673,203.09,203.08,77.26559401]
[1757239104983,0.00753673,203.09,203.08,77.93559401]
[1757239107470,0.00753673,203.09,203.08,77.26559401]
[1757239107671,0.00753673,203.09,203.08,77.93559401]
[1757239114677,0.00753673,203.09,203.08,82.91903451]
[1757239114869,0.00753673,203.09,203.08,77.93559401]
[1757239117158,0.00753673,203.09,203.08,82.91903451]
[1757239123278,0.00753673,203.09,203.08,56.91903451]
[1757239124565,0.06,203.1,203.08,56.91903451]
[1757239124767,0.06,203.1,203.09,0.67]
[1757239125293,0.06,203.1,203.09,2.64049188]
[1757239125596,0.06,203.1,203.09,16.23608589]
[1757239134998,0.06,203.1,203.09,16.26608589]
[1757239143605,0.00776036,203.1,203.09,16.26608589]
[1757239143806,0.00776036,203.1,203.09,21.19001124]
[1757239146209,0.00776036,203.1,203.09,16.26608589]
[1757239146983,0.00776036,203.1,203.09,15.59608589]
[1757239147202,0.00776036,203.1,203.09,53.17608589]
[1757239148106,0.00776036,203.1,203.09,53.89608589]
[1757239149302,0.00776036,203.1,203.09,53.17608589]
[1757239149882,0.67776036,203.1,203.09,53.17608589]
[1757239150083,0.00776036,203.1,203.09,53.17608589]
[1757239151906,0.00776036,203.1,203.09,53.89608589]
[1757239166601,0.06,203.11,203.1,13.59559401]